[Event "*** Titled Tuesday 3|2 Blitz"]
[Site "Chess.com"]
[Date "2015.12.01"]
[Round "4"]
[White "bugsbunny444"]
[Black "BellJackson95"]
[Result "0-1"]
[WhiteElo "2343"]
[BlackElo "2185"]
[TimeControl "180+2"]
[EndTime "17:52:13 PST"]
[Termination "BellJackson95 won by resignation"]

1. Nf3 {[%clk 0:03:01.9]} 1... Nf6 {[%clk 0:02:59.5]} 2. c4 {[%clk 0:03:02.6]}
2... c5 {[%clk 0:03:00.1]} 3. g3 {[%clk 0:03:03.1]} 3... Nc6 {[%clk 0:03:00.6]}
4. d4 {[%clk 0:03:03.5]} 4... cxd4 {[%clk 0:03:01.2]} 5. Nxd4 {[%clk 0:03:05.4]}
5... Nxd4 {[%clk 0:03:01.2]} 6. Qxd4 {[%clk 0:03:05.9]} 6... g6 {[%clk
0:03:01.8]} 7. Bg2 {[%clk 0:03:05.4]} 7... Bg7 {[%clk 0:03:02.6]} 8. O-O {[%clk
0:03:02.7]} 8... d6 {[%clk 0:03:01.3]} 9. c5 {[%clk 0:02:45.6]} 9... dxc5 {[%clk
0:03:00.2]} 10. Qxc5 {[%clk 0:02:39.9]} 10... O-O {[%clk 0:02:57.6]} 11. Nc3
{[%clk 0:02:39]} 11... Nd7 {[%clk 0:02:33.4]} 12. Qb4 {[%clk 0:02:24.1]} 12...
a5 {[%clk 0:02:18.3]} 13. Qa3 {[%clk 0:02:12]} 13... Ra6 {[%clk 0:02:16.3]} 14.
Rd1 {[%clk 0:02:06.3]} 14... Be5 {[%clk 0:01:54.7]} 15. Nb5 {[%clk 0:01:45.9]}
15... Qb6 {[%clk 0:01:46.8]} 16. Rd5 {[%clk 0:00:49.2]} 16... e6 {[%clk
0:01:15.2]} 17. Be3 {[%clk 0:00:49.5]} 17... Qd8 {[%clk 0:01:10.7]} 18. Rd2
{[%clk 0:00:39.5]} 18... Qf6 {[%clk 0:00:33.5]} 19. f4 {[%clk 0:00:28.3]} 19...
Bb8 {[%clk 0:00:32.8]} 20. Rad1 {[%clk 0:00:21.7]} 20... Nb6 {[%clk 0:00:24.1]}
21. Bd4 {[%clk 0:00:09.5]} 21... Qf5 {[%clk 0:00:20.9]} 22. Qd3 {[%clk
0:00:09.1]} 22... Qxd3 {[%clk 0:00:14.1]} 23. Rxd3 {[%clk 0:00:11]} 23... Nd5
{[%clk 0:00:14.5]} 24. a3 {[%clk 0:00:07.2]} 24... Bd7 {[%clk 0:00:11.5]} 25.
Nc3 {[%clk 0:00:08.5]} 25... Nxc3 {[%clk 0:00:11.4]} 26. Bxc3 {[%clk 0:00:08.1]}
26... Bc6 {[%clk 0:00:12.3]} 27. Rd8 {[%clk 0:00:08.2]} 27... Bc7 {[%clk
0:00:10.1]} 28. Rxf8+ {[%clk 0:00:04.4]} 28... Kxf8 {[%clk 0:00:12]} 29. Bf6
{[%clk 0:00:04.2]} 29... Ke8 {[%clk 0:00:10]} 30. Kf1 {[%clk 0:00:02.9]} 30...
Rb6 {[%clk 0:00:08.5]} 31. Rc1 {[%clk 0:00:03.4]} 31... Bd8 {[%clk 0:00:08.6]}
32. Bxd8 {[%clk 0:00:03.8]} 32... Kxd8 {[%clk 0:00:10.5]} 33. Bxc6 {[%clk
0:00:04.9]} 33... bxc6 {[%clk 0:00:12.4]} 34. Rc2 {[%clk 0:00:04.2]} 34... Kd7
{[%clk 0:00:13.2]} 35. Ke1 {[%clk 0:00:05.5]} 35... Kd6 {[%clk 0:00:13.5]} 36.
Kd2 {[%clk 0:00:07]} 36... Kd5 {[%clk 0:00:12.8]} 37. Kc3 {[%clk 0:00:06.6]}
37... Ke4 {[%clk 0:00:12.7]} 38. Kd2 {[%clk 0:00:06.7]} 38... Rb5 {[%clk
0:00:12]} 39. Rc4+ {[%clk 0:00:05.7]} 39... Kf5 {[%clk 0:00:10.8]} 40. b4 {[%clk
0:00:05.9]} 40... axb4 {[%clk 0:00:11.4]} 41. Rxb4 {[%clk 0:00:05.9]} 41... Rd5+
{[%clk 0:00:11.9]} 42. Kc3 {[%clk 0:00:04.4]} 42... Kg4 {[%clk 0:00:12.7]} 43.
Rc4 {[%clk 0:00:04.7]} 43... Ra5 {[%clk 0:00:11.3]} 44. Kb4 {[%clk 0:00:05.6]}
44... Rb5+ {[%clk 0:00:11.9]} 45. Kc3 {[%clk 0:00:05.5]} 45... Rb6 {[%clk
0:00:12]} 46. a4 {[%clk 0:00:06.3]} 46... Kh3 {[%clk 0:00:12.4]} 47. a5 {[%clk
0:00:04.5]} 47... Ra6 {[%clk 0:00:11.5]} 48. Kb4 {[%clk 0:00:04.5]} 48... Kxh2
{[%clk 0:00:12.1]} 49. g4 {[%clk 0:00:06.1]} 49... Kg3 {[%clk 0:00:12.5]} 50. g5
{[%clk 0:00:06.8]} 50... Kf2 {[%clk 0:00:12.2]} 51. Re4 {[%clk 0:00:05.5]} 51...
Kg3 {[%clk 0:00:10.7]} 52. e3 {[%clk 0:00:05.9]} 52... Kg4 {[%clk 0:00:11.4]}
53. Re5 {[%clk 0:00:06.4]} 53... Kh5 {[%clk 0:00:11.6]} 54. Kc4 {[%clk
0:00:06.9]} 54... h6 {[%clk 0:00:11.9]} 55. Kd4 {[%clk 0:00:03.7]} 55... hxg5
{[%clk 0:00:12.1]} 56. Rxg5+ {[%clk 0:00:05.6]} 56... Kh6 {[%clk 0:00:12.7]} 57.
Rc5 {[%clk 0:00:07.5]} 57... Kg7 {[%clk 0:00:13.3]} 58. Ke4 {[%clk 0:00:09.1]}
58... Kf6 {[%clk 0:00:12.2]} 59. Kd4 {[%clk 0:00:08.6]} 59... Ke7 {[%clk
0:00:13]} 60. e4 {[%clk 0:00:08.7]} 60... f6 {[%clk 0:00:13]} 61. e5 {[%clk
0:00:04.6]} 61... f5 {[%clk 0:00:10.7]} 62. Kc4 {[%clk 0:00:05.4]} 62... Kf7
{[%clk 0:00:11.3]} 63. Kb4 {[%clk 0:00:06.4]} 63... g5 {[%clk 0:00:11.6]} 64.
fxg5 {[%clk 0:00:06.8]} 64... Kg6 {[%clk 0:00:12.8]} 65. Rc1 {[%clk 0:00:04.1]}
65... Kxg5 {[%clk 0:00:13.5]} 66. Ra1 {[%clk 0:00:04.1]} 66... Kf4 {[%clk
0:00:13.5]} 67. Re1 {[%clk 0:00:04.9]} 67... Kg3 {[%clk 0:00:13.7]} 68. Rd1
{[%clk 0:00:04.3]} 68... f4 {[%clk 0:00:14.1]} 69. Rd6 {[%clk 0:00:05.4]} 69...
f3 {[%clk 0:00:12.8]} 70. Rxe6 {[%clk 0:00:06.8]} 70... c5+ {[%clk 0:00:13]} 0-1

[Event "*** Titled Tuesday 3|2 Blitz"]
[Site "Chess.com"]
[Date "2015.12.01"]
[Round "4"]
[White "Kacparov"]
[Black "Iball95"]
[Result "1-0"]
[WhiteElo "2518"]
[BlackElo "2417"]
[TimeControl "180+2"]
[EndTime "17:53:12 PST"]
[Termination "Kacparov won by checkmate"]

1. e4 {[%clk 0:03:01.9]} 1... e5 {[%clk 0:02:59.6]} 2. Nf3 {[%clk 0:03:03]} 2...
Nc6 {[%clk 0:03:00.1]} 3. Bc4 {[%clk 0:03:03.4]} 3... Bc5 {[%clk 0:02:58.8]} 4.
c3 {[%clk 0:03:04.7]} 4... Nf6 {[%clk 0:02:58.9]} 5. d3 {[%clk 0:03:05.9]} 5...
d6 {[%clk 0:02:58.5]} 6. Bb3 {[%clk 0:03:07]} 6... a6 {[%clk 0:02:57.1]} 7. Nbd2
{[%clk 0:03:06.3]} 7... Be6 {[%clk 0:02:56.6]} 8. h3 {[%clk 0:03:07.2]} 8... O-O
{[%clk 0:02:56.5]} 9. Bc2 {[%clk 0:03:08.1]} 9... h6 {[%clk 0:02:53.1]} 10. Nh2
{[%clk 0:03:08.8]} 10... d5 {[%clk 0:02:52.9]} 11. Qf3 {[%clk 0:03:09.9]} 11...
dxe4 {[%clk 0:02:49.8]} 12. dxe4 {[%clk 0:03:10.7]} 12... Ne7 {[%clk 0:02:48.4]}
13. Ng4 {[%clk 0:03:09.3]} 13... Ng6 {[%clk 0:02:46.2]} 14. Nxf6+ {[%clk
0:03:03.3]} 14... Qxf6 {[%clk 0:02:48.1]} 15. Qxf6 {[%clk 0:03:04.3]} 15... gxf6
{[%clk 0:02:50]} 16. g3 {[%clk 0:03:05.5]} 16... Rad8 {[%clk 0:02:46.6]} 17. Nb3
{[%clk 0:03:05.3]} 17... Bxb3 {[%clk 0:02:42.3]} 18. axb3 {[%clk 0:03:07.2]}
18... Kg7 {[%clk 0:02:41.9]} 19. b4 {[%clk 0:03:08.5]} 19... Bb6 {[%clk
0:02:41.1]} 20. Ke2 {[%clk 0:03:09.9]} 20... Rd7 {[%clk 0:02:36.8]} 21. Rd1
{[%clk 0:03:09.1]} 21... Rfd8 {[%clk 0:02:35.3]} 22. Rxd7 {[%clk 0:03:09.4]}
22... Rxd7 {[%clk 0:02:37.2]} 23. h4 {[%clk 0:03:08.9]} 23... Nf8 {[%clk
0:02:35.2]} 24. Ba4 {[%clk 0:03:09.7]} 24... Rd8 {[%clk 0:02:34]} 25. Bb3 {[%clk
0:02:59.2]} 25... Ne6 {[%clk 0:02:33]} 26. Bc4 {[%clk 0:02:57.3]} 26... Rd6
{[%clk 0:02:31.1]} 27. Bd5 {[%clk 0:02:51]} 27... c6 {[%clk 0:02:30.1]} 28. Bc4
{[%clk 0:02:52.1]} 28... Rd8 {[%clk 0:02:29.1]} 29. Ra2 {[%clk 0:02:51.6]} 29...
Rd6 {[%clk 0:02:29.3]} 30. Bb3 {[%clk 0:02:51.6]} 30... Rd8 {[%clk 0:02:29.6]}
31. Bc2 {[%clk 0:02:52.8]} 31... Rd7 {[%clk 0:02:28.7]} 32. Bb1 {[%clk
0:02:53.4]} 32... Rd8 {[%clk 0:02:28.8]} 33. b3 {[%clk 0:02:53.7]} 33... Nc7
{[%clk 0:02:24.7]} 34. Rd2 {[%clk 0:02:52.2]} 34... Nb5 {[%clk 0:02:21.5]} 35.
Rxd8 {[%clk 0:02:52.9]} 35... Bxd8 {[%clk 0:02:23.4]} 36. Bd2 {[%clk 0:02:50.9]}
36... Bb6 {[%clk 0:02:22]} 37. Bd3 {[%clk 0:02:51.9]} 37... Nc7 {[%clk
0:02:18.5]} 38. Bc4 {[%clk 0:02:52]} 38... Ba7 {[%clk 0:02:09.5]} 39. f4 {[%clk
0:02:52.8]} 39... Ne8 {[%clk 0:02:03.5]} 40. Kf3 {[%clk 0:02:53.5]} 40... Nd6
{[%clk 0:02:00.4]} 41. Bd3 {[%clk 0:02:54.4]} 41... Bb6 {[%clk 0:01:57.3]} 42.
Kg4 {[%clk 0:02:52.8]} 42... Ba7 {[%clk 0:01:51.8]} 43. Kh5 {[%clk 0:02:50.6]}
43... Bf2 {[%clk 0:01:24]} 44. fxe5 {[%clk 0:02:42.9]} 44... fxe5 {[%clk
0:01:25.9]} 45. Bxh6+ {[%clk 0:02:43.3]} 45... Kh7 {[%clk 0:01:25.2]} 46. Bf8
{[%clk 0:02:39.8]} 46... Ne8 {[%clk 0:01:22.7]} 47. Kg4 {[%clk 0:02:37]} 47...
Be1 {[%clk 0:01:17.1]} 48. c4 {[%clk 0:02:32.3]} 48... Nc7 {[%clk 0:01:01.5]}
49. Bd6 {[%clk 0:02:31.6]} 49... Ne6 {[%clk 0:00:59.1]} 50. b5 {[%clk
0:02:26.6]} 50... cxb5 {[%clk 0:00:58.2]} 51. cxb5 {[%clk 0:02:28.5]} 51... axb5
{[%clk 0:00:52.4]} 52. Bxb5 {[%clk 0:02:30.4]} 52... f6 {[%clk 0:00:54.3]} 53.
Bc4 {[%clk 0:02:29.9]} 53... Nd4 {[%clk 0:00:51.6]} 54. Be7 {[%clk 0:01:39.6]}
54... Kg7 {[%clk 0:00:50.4]} 55. h5 {[%clk 0:01:40.8]} 55... Nc6 {[%clk
0:00:29.9]} 56. Bc5 {[%clk 0:01:35.3]} 56... Bd2 {[%clk 0:00:29.4]} 57. Bd5
{[%clk 0:01:34.6]} 57... Nd4 {[%clk 0:00:21.3]} 58. Be7 {[%clk 0:01:23.1]} 58...
b5 {[%clk 0:00:20]} 59. Kh3 {[%clk 0:01:12.7]} 59... Bg5 {[%clk 0:00:19.3]} 60.
Kg2 {[%clk 0:01:11.4]} 60... Kh6 {[%clk 0:00:19.7]} 61. g4 {[%clk 0:01:10.6]}
61... Bh4 {[%clk 0:00:20]} 62. Bb4 {[%clk 0:00:55.9]} 62... Bg5 {[%clk
0:00:19.4]} 63. Kf2 {[%clk 0:00:54.2]} 63... Bf4 {[%clk 0:00:17.9]} 64. Bf8+
{[%clk 0:00:51.7]} 64... Kh7 {[%clk 0:00:18.1]} 65. Ke1 {[%clk 0:00:49.1]} 65...
Be3 {[%clk 0:00:16]} 66. Kd1 {[%clk 0:00:49.7]} 66... Bf4 {[%clk 0:00:15.7]} 67.
b4 {[%clk 0:00:41.8]} 67... Bg5 {[%clk 0:00:13.8]} 68. Bf7 {[%clk 0:00:40.7]}
68... Bf4 {[%clk 0:00:11.4]} 69. Bg6+ {[%clk 0:00:40.7]} 69... Kg8 {[%clk
0:00:12.4]} 70. Bc5 {[%clk 0:00:40.6]} 70... Kg7 {[%clk 0:00:13.1]} 71. Bf5
{[%clk 0:00:39]} 71... Bg5 {[%clk 0:00:13.5]} 72. Be7 {[%clk 0:00:26.5]} 72...
Bf4 {[%clk 0:00:14.1]} 73. Bd6 {[%clk 0:00:24.8]} 73... Kh6 {[%clk 0:00:14.2]}
74. Bf8+ {[%clk 0:00:25.2]} 74... Kg5 {[%clk 0:00:14.8]} 75. h6 {[%clk
0:00:25.6]} 75... Nxf5 {[%clk 0:00:13.9]} 76. gxf5 {[%clk 0:00:25.2]} 76... Kg4
{[%clk 0:00:14.6]} 77. h7 {[%clk 0:00:26.4]} 77... Kf3 {[%clk 0:00:15.3]} 78.
h8=Q {[%clk 0:00:27.7]} 78... Kxe4 {[%clk 0:00:17.2]} 79. Qxf6 {[%clk
0:00:28.7]} 79... Be3 {[%clk 0:00:19.1]} 80. Qe6 {[%clk 0:00:29.7]} 80... Kd3
{[%clk 0:00:21]} 81. f6 {[%clk 0:00:28.6]} 81... Bd4 {[%clk 0:00:22.9]} 82. f7
{[%clk 0:00:29.1]} 82... e4 {[%clk 0:00:24.8]} 83. Bc5 {[%clk 0:00:29.3]} 83...
e3 {[%clk 0:00:26.7]} 84. Bxd4 {[%clk 0:00:29.4]} 84... e2+ {[%clk 0:00:27.5]}
85. Qxe2+ {[%clk 0:00:29.8]} 85... Kxd4 {[%clk 0:00:29.4]} 86. Qxb5 {[%clk
0:00:30.3]} 86... Kc3 {[%clk 0:00:29.7]} 87. f8=Q {[%clk 0:00:30.5]} 87... Kd4
{[%clk 0:00:31.6]} 88. Qbc5+ {[%clk 0:00:31.2]} 88... Kd3 {[%clk 0:00:32.3]} 89.
Qff5# {[%clk 0:00:32.1]} 1-0

[Event "*** Titled Tuesday 3|2 Blitz"]
[Site "Chess.com"]
[Date "2015.12.01"]
[Round "5"]
[White "StellarChessPro"]
[Black "chessbia"]
[Result "1-0"]
[WhiteElo "2256"]
[BlackElo "2122"]
[TimeControl "180+2"]
[EndTime "17:57:01 PST"]
[Termination "StellarChessPro won by resignation"]

1. d4 {[%clk 0:03:01.9]} 1... d5 {[%clk 0:03:00.4]} 2. Nf3 {[%clk 0:03:02.4]}
2... Nf6 {[%clk 0:03:00.3]} 3. e3 {[%clk 0:03:03.9]} 3... c6 {[%clk 0:02:55.6]}
4. c4 {[%clk 0:03:05.1]} 4... e6 {[%clk 0:02:53.5]} 5. Nbd2 {[%clk 0:03:06]}
5... Nbd7 {[%clk 0:02:54.6]} 6. Bd3 {[%clk 0:03:07.3]} 6... Be7 {[%clk
0:02:53.4]} 7. b3 {[%clk 0:03:08.8]} 7... O-O {[%clk 0:02:54.1]} 8. Bb2 {[%clk
0:03:10.5]} 8... h6 {[%clk 0:02:53.6]} 9. Qe2 {[%clk 0:03:11.5]} 9... Re8 {[%clk
0:02:51.5]} 10. O-O {[%clk 0:03:13]} 10... Nf8 {[%clk 0:02:47.1]} 11. Ne5 {[%clk
0:03:14.4]} 11... dxc4 {[%clk 0:02:44.6]} 12. bxc4 {[%clk 0:03:15.1]} 12... c5
{[%clk 0:02:44.5]} 13. f4 {[%clk 0:03:13.1]} 13... b6 {[%clk 0:02:43.4]} 14. g4
{[%clk 0:03:13.2]} 14... Bb7 {[%clk 0:02:40.7]} 15. g5 {[%clk 0:03:09.3]} 15...
hxg5 {[%clk 0:02:40.7]} 16. fxg5 {[%clk 0:03:11.2]} 16... N6h7 {[%clk
0:02:31.2]} 17. Nxf7 {[%clk 0:03:05.9]} 17... Qc7 {[%clk 0:02:30.8]} 18. Qh5
{[%clk 0:03:02.1]} 18... cxd4 {[%clk 0:02:11.9]} 19. exd4 {[%clk 0:02:43.4]}
19... Bb4 {[%clk 0:01:56.9]} 20. g6 {[%clk 0:02:37.1]} 20... Nxg6 {[%clk
0:01:49.8]} 21. Bxg6 {[%clk 0:02:33.8]} 1-0

[Event "*** Titled Tuesday 3|2 Blitz"]
[Site "Chess.com"]
[Date "2015.12.01"]
[Round "5"]
[White "gmjoey1"]
[Black "kungmongmanh"]
[Result "1-0"]
[WhiteElo "2428"]
[BlackElo "2380"]
[TimeControl "180+2"]
[EndTime "18:00:02 PST"]
[Termination "gmjoey1 won by resignation"]

1. e4 {[%clk 0:03:01.9]} 1... c5 {[%clk 0:03:00.8]} 2. c3 {[%clk 0:03:00.5]}
2... d5 {[%clk 0:02:59.7]} 3. exd5 {[%clk 0:03:00.5]} 3... Qxd5 {[%clk
0:03:00.8]} 4. d4 {[%clk 0:03:01.7]} 4... Nf6 {[%clk 0:03:01.9]} 5. Nf3 {[%clk
0:03:02.8]} 5... Bg4 {[%clk 0:03:02.9]} 6. Be2 {[%clk 0:03:03.6]} 6... cxd4
{[%clk 0:03:02.2]} 7. cxd4 {[%clk 0:03:03.6]} 7... Nc6 {[%clk 0:03:03.3]} 8. Nc3
{[%clk 0:03:03.2]} 8... Qa5 {[%clk 0:03:03.6]} 9. h3 {[%clk 0:03:00]} 9... Bh5
{[%clk 0:02:46.9]} 10. g4 {[%clk 0:02:20.8]} 10... Bg6 {[%clk 0:02:44.5]} 11.
Ne5 {[%clk 0:02:19.7]} 11... e6 {[%clk 0:02:26]} 12. Bb5 {[%clk 0:02:11.4]}
12... Rc8 {[%clk 0:02:20.4]} 13. O-O {[%clk 0:02:06.2]} 13... Bb4 {[%clk
0:02:14.8]} 14. Bxc6+ {[%clk 0:01:34.7]} 14... bxc6 {[%clk 0:02:14.3]} 15. Qf3
{[%clk 0:01:35.9]} 15... Nd5 {[%clk 0:01:53.8]} 16. h4 {[%clk 0:01:30.6]} 16...
Bxc3 {[%clk 0:01:43.8]} 17. h5 {[%clk 0:01:31.4]} 17... Bxd4 {[%clk 0:01:36.2]}
18. hxg6 {[%clk 0:01:31.5]} 18... O-O {[%clk 0:00:55.2]} 19. gxf7+ {[%clk
0:01:29]} 19... Rxf7 {[%clk 0:00:46.5]} 20. Qxf7+ {[%clk 0:01:27.3]} 20... Kh8
{[%clk 0:00:47.2]} 21. Qxe6 {[%clk 0:01:21.6]} 21... Qc7 {[%clk 0:00:21.5]} 22.
Nf7+ {[%clk 0:01:16.4]} 22... Kg8 {[%clk 0:00:21.3]} 23. Nd6+ {[%clk 0:01:15.6]}
23... Kf8 {[%clk 0:00:22.4]} 24. Qxc8+ {[%clk 0:01:10]} 24... Qxc8 {[%clk
0:00:23.1]} 25. Nxc8 {[%clk 0:01:11.9]} 1-0

[Event "*** Titled Tuesday 3|2 Blitz"]
[Site "Chess.com"]
[Date "2015.12.01"]
[Round "5"]
[White "Fandorine"]
[Black "MattyDPerrine"]
[Result "1-0"]
[WhiteElo "2531"]
[BlackElo "2258"]
[TimeControl "180+2"]
[EndTime "18:00:14 PST"]
[Termination "Fandorine won by resignation"]

1. e4 {[%clk 0:03:01.9]} 1... c5 {[%clk 0:03:00]} 2. b3 {[%clk 0:03:02.6]} 2...
Nf6 {[%clk 0:02:58.7]} 3. e5 {[%clk 0:03:00.8]} 3... Nd5 {[%clk 0:02:27.4]} 4.
Bb2 {[%clk 0:03:00.5]} 4... e6 {[%clk 0:02:28]} 5. Nf3 {[%clk 0:02:59.5]} 5...
Be7 {[%clk 0:02:25.9]} 6. g3 {[%clk 0:03:00.8]} 6... O-O {[%clk 0:02:26.7]} 7.
Bg2 {[%clk 0:03:02.4]} 7... Nc6 {[%clk 0:02:20.6]} 8. O-O {[%clk 0:03:03.2]}
8... b6 {[%clk 0:02:22.1]} 9. c4 {[%clk 0:02:43]} 9... Nc7 {[%clk 0:02:12.5]}
10. d4 {[%clk 0:02:43.1]} 10... cxd4 {[%clk 0:02:12.9]} 11. Nxd4 {[%clk
0:02:44.4]} 11... Bb7 {[%clk 0:02:14.5]} 12. Nc3 {[%clk 0:02:41.9]} 12... Rb8
{[%clk 0:01:52.4]} 13. Re1 {[%clk 0:02:38.1]} 13... Nxd4 {[%clk 0:01:42.1]} 14.
Qxd4 {[%clk 0:02:37.4]} 14... Bxg2 {[%clk 0:01:41.6]} 15. Kxg2 {[%clk
0:02:38.5]} 15... Qc8 {[%clk 0:00:56.5]} 16. Ne4 {[%clk 0:02:36.1]} 16... Rd8
{[%clk 0:00:37.8]} 17. Rac1 {[%clk 0:02:11.8]} 17... Qb7 {[%clk 0:00:35.3]} 18.
Kg1 {[%clk 0:02:12.5]} 18... Ne8 {[%clk 0:00:25.4]} 19. Red1 {[%clk 0:01:56.6]}
19... Bf8 {[%clk 0:00:23.8]} 20. Qe3 {[%clk 0:01:53.7]} 20... d5 {[%clk
0:00:15.2]} 21. exd6 {[%clk 0:01:34.4]} 21... Nxd6 {[%clk 0:00:16.2]} 22. Nxd6
{[%clk 0:01:34.5]} 22... Rxd6 {[%clk 0:00:14.9]} 23. Rxd6 {[%clk 0:01:33]} 23...
Bxd6 {[%clk 0:00:15.1]} 24. Bxg7 {[%clk 0:01:31.8]} 24... Kxg7 {[%clk
0:00:12.9]} 25. Qd4+ {[%clk 0:01:32.7]} 25... Kg8 {[%clk 0:00:14.6]} 26. Qxd6
{[%clk 0:01:33.7]} 26... Rc8 {[%clk 0:00:14.1]} 27. Qe5 {[%clk 0:01:29.9]} 27...
Qf3 {[%clk 0:00:13.9]} 28. Rc3 {[%clk 0:01:27.1]} 28... Qd1+ {[%clk 0:00:12.9]}
29. Kg2 {[%clk 0:01:28.6]} 29... Rd8 {[%clk 0:00:12.8]} 30. Rf3 {[%clk
0:01:29.3]} 30... Qd3 {[%clk 0:00:09.3]} 31. Rxd3 {[%clk 0:01:29.6]} 1-0

[Event "*** Titled Tuesday 3|2 Blitz"]
[Site "Chess.com"]
[Date "2015.12.01"]
[Round "5"]
[White "JustKid"]
[Black "Assasin14"]
[Result "1-0"]
[WhiteElo "2106"]
[BlackElo "1899"]
[TimeControl "180+2"]
[EndTime "18:00:46 PST"]
[Termination "JustKid won by checkmate"]

1. d4 {[%clk 0:03:01.9]} 1... d5 {[%clk 0:03:00.7]} 2. c4 {[%clk 0:03:02.6]}
2... c6 {[%clk 0:03:02]} 3. cxd5 {[%clk 0:03:03.6]} 3... cxd5 {[%clk 0:03:03.9]}
4. Bf4 {[%clk 0:03:05.3]} 4... Nf6 {[%clk 0:03:01.7]} 5. e3 {[%clk 0:03:06.7]}
5... Nc6 {[%clk 0:03:00.6]} 6. Nc3 {[%clk 0:03:08.1]} 6... a6 {[%clk 0:02:55.4]}
7. Bd3 {[%clk 0:03:08]} 7... Bg4 {[%clk 0:02:55.5]} 8. Nge2 {[%clk 0:03:07.2]}
8... e6 {[%clk 0:02:56.3]} 9. O-O {[%clk 0:03:01.5]} 9... Be7 {[%clk 0:02:55.9]}
10. f3 {[%clk 0:03:01.3]} 10... Bh5 {[%clk 0:02:56.5]} 11. Rc1 {[%clk
0:03:02.9]} 11... O-O {[%clk 0:02:47.7]} 12. a3 {[%clk 0:03:04]} 12... Rc8
{[%clk 0:02:45.7]} 13. Na4 {[%clk 0:03:05.3]} 13... Na5 {[%clk 0:02:18]} 14. Nc5
{[%clk 0:02:59.8]} 14... Bxc5 {[%clk 0:02:05.9]} 15. dxc5 {[%clk 0:03:00.8]}
15... Nc6 {[%clk 0:01:54.2]} 16. b4 {[%clk 0:02:57]} 16... e5 {[%clk 0:01:54.6]}
17. Bg5 {[%clk 0:02:57.1]} 17... Bg6 {[%clk 0:01:52.5]} 18. Bxg6 {[%clk
0:02:55.6]} 18... hxg6 {[%clk 0:01:54.4]} 19. Nc3 {[%clk 0:02:57.2]} 19... d4
{[%clk 0:01:47.2]} 20. Ne4 {[%clk 0:02:57.5]} 20... dxe3 {[%clk 0:01:31.8]} 21.
Nd6 {[%clk 0:02:50.4]} 21... Rc7 {[%clk 0:01:05.7]} 22. Bxe3 {[%clk 0:02:46.2]}
22... Ne8 {[%clk 0:01:02]} 23. Nc4 {[%clk 0:02:41.8]} 23... Rd7 {[%clk
0:01:01.1]} 24. Qe2 {[%clk 0:02:40.8]} 24... Nc7 {[%clk 0:00:32.2]} 25. Nd6
{[%clk 0:02:36.3]} 25... Nb5 {[%clk 0:00:26.4]} 26. Nxb5 {[%clk 0:02:36.4]}
26... axb5 {[%clk 0:00:27.3]} 27. Qxb5 {[%clk 0:02:38.3]} 27... Rd3 {[%clk
0:00:28.2]} 28. Bf2 {[%clk 0:02:37.5]} 28... Rxa3 {[%clk 0:00:24.8]} 29. Qxb7
{[%clk 0:02:38.6]} 29... Nd4 {[%clk 0:00:21.6]} 30. Rfe1 {[%clk 0:02:37.2]}
30... Qg5 {[%clk 0:00:21.6]} 31. Bxd4 {[%clk 0:02:29.7]} 31... exd4 {[%clk
0:00:23.5]} 32. c6 {[%clk 0:02:31.3]} 32... d3 {[%clk 0:00:20.9]} 33. c7 {[%clk
0:02:18.3]} 33... d2 {[%clk 0:00:22]} 34. c8=Q {[%clk 0:02:17.2]} 34... dxe1=Q+
{[%clk 0:00:21.3]} 35. Rxe1 {[%clk 0:02:18.1]} 35... Rxc8 {[%clk 0:00:22.4]} 36.
Qxc8+ {[%clk 0:02:19.7]} 36... Kh7 {[%clk 0:00:23.8]} 37. Qh3+ {[%clk
0:02:19.7]} 37... Qh5 {[%clk 0:00:23.5]} 38. Qxh5+ {[%clk 0:02:18.2]} 38... gxh5
{[%clk 0:00:25.4]} 39. Rb1 {[%clk 0:02:19.4]} 39... Ra6 {[%clk 0:00:26]} 40. b5
{[%clk 0:02:20.9]} 40... Rb6 {[%clk 0:00:27.7]} 41. Kf2 {[%clk 0:02:22.8]} 41...
g6 {[%clk 0:00:28.4]} 42. Ke3 {[%clk 0:02:24.4]} 42... Kg7 {[%clk 0:00:30]} 43.
Kd4 {[%clk 0:02:26.1]} 43... Kf6 {[%clk 0:00:31.5]} 44. Kc5 {[%clk 0:02:27.8]}
44... Rb8 {[%clk 0:00:32.3]} 45. b6 {[%clk 0:02:29.4]} 45... Kf5 {[%clk
0:00:33.7]} 46. Kc6 {[%clk 0:02:30.6]} 46... Kf4 {[%clk 0:00:35.1]} 47. Kc7
{[%clk 0:02:30.4]} 47... Rg8 {[%clk 0:00:35.3]} 48. b7 {[%clk 0:02:31.5]} 48...
Re8 {[%clk 0:00:34.2]} 49. b8=Q {[%clk 0:02:31.8]} 49... Rxb8 {[%clk 0:00:35.1]}
50. Rxb8 {[%clk 0:02:32.7]} 50... h4 {[%clk 0:00:36]} 51. Kd6 {[%clk 0:02:32.2]}
51... Ke3 {[%clk 0:00:36.6]} 52. Rb2 {[%clk 0:02:32.1]} 52... f5 {[%clk
0:00:37.8]} 53. Ke6 {[%clk 0:02:33.1]} 53... Kf4 {[%clk 0:00:37.9]} 54. Kf6
{[%clk 0:02:34.4]} 54... g5 {[%clk 0:00:38.5]} 55. Rb4+ {[%clk 0:02:35.5]} 55...
Ke3 {[%clk 0:00:39.4]} 56. Kxg5 {[%clk 0:02:37.2]} 56... Kf2 {[%clk 0:00:40.6]}
57. Kxh4 {[%clk 0:02:38.6]} 57... Kxg2 {[%clk 0:00:41.9]} 58. Rf4 {[%clk
0:02:39.5]} 58... Kxh2 {[%clk 0:00:42.7]} 59. Rxf5 {[%clk 0:02:41.4]} 59... Kg2
{[%clk 0:00:44.1]} 60. f4 {[%clk 0:02:42.7]} 60... Kf2 {[%clk 0:00:46]} 61. Rg5
{[%clk 0:02:44.1]} 61... Ke2 {[%clk 0:00:43.4]} 62. f5 {[%clk 0:02:46]} 62...
Kf3 {[%clk 0:00:44.7]} 63. f6 {[%clk 0:02:47.9]} 63... Kf4 {[%clk 0:00:46.2]}
64. f7 {[%clk 0:02:49.8]} 64... Ke4 {[%clk 0:00:48.1]} 65. f8=Q {[%clk
0:02:51.7]} 65... Kd4 {[%clk 0:00:49.8]} 66. Rg7 {[%clk 0:02:53.6]} 66... Ke4
{[%clk 0:00:51.7]} 67. Re7+ {[%clk 0:02:55.5]} 67... Kd4 {[%clk 0:00:52.6]} 68.
Qd8+ {[%clk 0:02:57.4]} 68... Kc5 {[%clk 0:00:54.4]} 69. Rc7+ {[%clk 0:02:59.3]}
69... Kb6 {[%clk 0:00:56.1]} 70. Qb8+ {[%clk 0:03:01.2]} 70... Ka6 {[%clk
0:00:56.9]} 71. Ra7# {[%clk 0:03:03.1]} 1-0